bitfinex/quotes_BTCUSD_20250714
["timestamp","ask_amount","ask_price","bid_price","bid_amount"]
[1752488835078,0.13155893,121870.0,121860.0,0.33741243]
[1752488835533,0.13976392,121870.0,121860.0,0.01459197]
[1752488835748,0.13976392,121870.0,121860.0,0.33741243]
[1752488836173,0.15617424,121870.0,121860.0,0.47341243]
[1752488836407,0.14796898,121870.0,121860.0,0.47341243]
[1752488837366,0.12335408,121870.0,121860.0,0.63737519]
[1752488837587,0.131559,121870.0,121860.0,0.47325243]
[1752488837727,0.13155893,121870.0,121860.0,0.47325243]
[1752488838141,0.12335408,121870.0,121860.0,0.64558132]
[1752488838341,0.12335408,121870.0,121860.0,0.33741243]
[1752488838542,0.12335408,121870.0,121860.0,0.51794725]
[1752488838776,0.12335408,121870.0,121860.0,0.50974132]
[1752488839036,0.12035408,121870.0,121860.0,0.48141856]
[1752488839217,0.12235408,121870.0,121860.0,0.47321243]
[1752488839459,0.12235408,121870.0,121860.0,0.33741243]
[1752488839672,0.12035408,121870.0,121860.0,0.47317243]
[1752488840461,0.12335408,121870.0,121860.0,0.47317243]
[1752488840636,0.131559,121870.0,121860.0,0.47305243]
[1752488841071,0.15617464,121870.0,121860.0,0.45847158]
[1752488841284,0.14796925,121870.0,121860.0,0.32287158]
[1752488841531,0.15617458,121870.0,121860.0,0.45847158]
[1752488841756,0.15617458,121870.0,121860.0,0.13565112]
[1752488841985,0.14796925,121870.0,121860.0,0.45847158]
[1752488842205,0.13976406,121870.0,121860.0,0.45847158]
[1752488842424,0.14796918,121870.0,121860.0,0.45847158]
[1752488843060,0.15617444,121870.0,121860.0,0.45847158]
[1752488843508,0.131559,121870.0,121860.0,5.112e-05]
[1752488843732,0.12335408,121870.0,121860.0,0.45887158]
[1752488843950,0.12335408,121870.0,121860.0,0.32287158]
[1752488844165,0.13155893,121870.0,121860.0,0.32287158]
[1752488844419,0.13155893,121870.0,121860.0,0.45943158]
[1752488844625,0.13155893,121870.0,121860.0,0.32287158]
[1752488844835,0.13155893,121870.0,121860.0,0.45943158]
[1752488845504,0.12335408,121870.0,121860.0,0.46763771]
[1752488845716,0.12335408,121870.0,121860.0,0.33107771]
[1752488845932,0.12335408,121870.0,121860.0,0.46759771]
[1752488846141,0.12335408,121870.0,121860.0,0.63992647]
[1752488846555,0.12335408,121870.0,121860.0,0.63992654]
[1752488847001,0.12335408,121870.0,121860.0,0.78746957]
[1752488847211,0.13155907,121870.0,121860.0,0.28411415]
[1752488847621,0.13155907,121870.0,121860.0,0.60693461]
[1752488847850,0.12335408,121870.0,121860.0,0.60693461]
[1752488848057,0.131559,121870.0,121860.0,0.60693461]
[1752488848284,0.13976406,121870.0,121860.0,0.60693461]
[1752488848497,0.131559,121870.0,121860.0,0.60693461]
[1752488848905,0.12335408,121870.0,121860.0,0.60681461]
[1752488849141,0.131559,121870.0,121860.0,0.60681461]
[1752488849343,0.12335408,121870.0,121860.0,0.60681461]
[1752488849562,0.131559,121870.0,121860.0,0.60681461]
[1752488849794,0.12335408,121870.0,121860.0,0.28399415]
[1752488850011,0.12335408,121870.0,121860.0,0.45927158]
[1752488850221,0.12335408,121870.0,121860.0,0.46727771]
[1752488850654,0.12335408,121870.0,121860.0,0.13625112]
[1752488850874,0.131559,121870.0,121860.0,0.60645461]
[1752488851311,0.12335408,121870.0,121860.0,0.60645461]
[1752488852000,0.12335408,121870.0,121860.0,0.28363415]
[1752488852233,0.12335408,121870.0,121860.0,0.29184028]
[1752488852452,0.12335408,121870.0,121860.0,0.60645461]
[1752488852675,0.12335408,121870.0,121860.0,0.61466074]
[1752488852932,0.12335408,121870.0,121860.0,0.78698957]
[1752488853658,0.12335408,121870.0,121860.0,0.60645461]
[1752488853866,0.12335408,121870.0,121860.0,0.61466068]
[1752488854086,0.12335408,121870.0,121860.0,0.29184028]
[1752488854304,0.12335408,121870.0,121860.0,0.60645461]
[1752488854753,0.12335408,121870.0,121860.0,0.61466074]
[1752488854969,0.12335408,121870.0,121860.0,0.29184028]
[1752488855398,0.12335408,121870.0,121860.0,0.65915557]
[1752488855679,0.12335408,121870.0,121860.0,0.60649461]
[1752488855892,0.22111096,121870.0,121860.0,0.28367415]
[1752488856106,0.22931595,121870.0,121860.0,0.28367415]
[1752488856329,0.23752107,121870.0,121860.0,0.28367415]
[1752488856512,0.23752101,121870.0,121860.0,0.28367415]
[1752488856748,0.22931595,121870.0,121860.0,0.28367415]
[1752488856972,0.22931595,121870.0,121860.0,0.14759415]
[1752488857206,0.40163125,121870.0,121860.0,0.14759415]
[1752488857432,0.3652769,121870.0,121860.0,5.112e-05]
[1752488857647,0.52938619,121870.0,121860.0,5.112e-05]
[1752488858072,0.84420159,121870.0,121860.0,5.112e-05]
[1752488858280,0.52190113,121870.0,121860.0,5.112e-05]
[1752488858684,0.51369587,121870.0,121860.0,5.112e-05]
[1752488858829,0.91369587,121870.0,121860.0,5.112e-05]
[1752488860308,0.77701587,121870.0,121860.0,5.112e-05]
[1752488860512,0.91349587,121870.0,121860.0,5.112e-05]
[1752488860710,0.91349567,121870.0,121860.0,5.112e-05]
[1752488860925,0.93807138,121870.0,121860.0,5.112e-05]
[1752488861130,0.7852212,121870.0,121860.0,5.112e-05]
[1752488861340,0.9216612,121870.0,121860.0,5.112e-05]
[1752488862541,1.2363164,121870.0,121860.0,5.112e-05]
[1752488862949,0.91349594,121870.0,121860.0,5.112e-05]
[1752488863152,1.2363164,121870.0,121860.0,5.112e-05]
[1752488863365,0.77701594,121870.0,121860.0,5.112e-05]
[1752488863765,0.90529048,121870.0,121860.0,5.112e-05]
[1752488865413,0.91341587,121870.0,121860.0,5.112e-05]
[1752488866051,0.77701587,121870.0,121860.0,5.112e-05]
[1752488866266,0.91337587,121870.0,121860.0,5.112e-05]
[1752488867127,0.7852212,121870.0,121860.0,5.112e-05]
[1752488867345,0.92978646,121870.0,121860.0,5.112e-05]
[1752488867955,0.79342646,121870.0,121860.0,5.112e-05]
[1752488868235,0.92966646,121870.0,121860.0,5.112e-05]
[1752488869544,0.93787192,121870.0,121860.0,5.112e-05]
[1752488872116,0.92094133,121870.0,121860.0,5.112e-05]
[1752488872528,0.61290611,121870.0,121860.0,0.32287158]
[1752488872728,0.76499629,121870.0,121860.0,0.32287158]
[1752488873347,0.64572701,121870.0,121860.0,5.112e-05]
[1752488873542,0.76491663,121870.0,121860.0,5.112e-05]
[1752488873747,0.79342646,121870.0,121860.0,5.112e-05]
[1752488873950,0.92898646,121870.0,121860.0,5.112e-05]
[1752488874603,0.9207812,121870.0,121860.0,5.112e-05]
[1752488874813,0.91249587,121870.0,121860.0,5.112e-05]
[1752488875499,0.91241587,121870.0,121860.0,5.112e-05]
[1752488876102,1.09983633,121870.0,121860.0,5.112e-05]
[1752488876297,0.51237587,121870.0,121860.0,5.112e-05]
[1752488876682,0.83519633,121870.0,121860.0,5.112e-05]
[1752488877211,0.83119633,121870.0,121860.0,5.112e-05]
[1752488877419,0.83919633,121870.0,121860.0,0.00105112]
[1752488877610,0.84219633,121870.0,121860.0,0.00105112]
[1752488877817,1.12015367,121870.0,121860.0,5.112e-05]
[1752488878021,1.06490664,121870.0,121860.0,0.00105112]
[1752488878240,1.22471664,121870.0,121860.0,0.00105112]
[1752488878453,1.22771664,121870.0,121860.0,0.00105112]
[1752488878878,1.08151664,121870.0,121860.0,5.112e-05]
[1752488879052,1.22575664,121870.0,121860.0,0.00105112]
[1752488879324,1.09051664,121870.0,121860.0,0.00105112]
[1752488879455,1.22571664,121870.0,121860.0,0.00105112]
[1752488880068,1.09051664,121870.0,121860.0,0.00105112]
[1752488880273,1.20456633,121870.0,121860.0,0.00105112]
[1752488880475,1.20856633,121870.0,121860.0,0.00105112]
[1752488880959,0.88574587,121870.0,121860.0,0.00105112]
[1752488881092,1.07344633,121870.0,121860.0,0.00105112]
[1752488881278,1.20852633,121870.0,121860.0,0.00105112]
[1752488882406,1.07344633,121870.0,121860.0,0.00105112]
[1752488882978,1.20840633,121870.0,121860.0,0.00105112]
[1752488885229,1.20824633,121870.0,121860.0,0.00105112]
[1752488885656,1.07344633,121870.0,121860.0,0.00105112]
[1752488885865,0.88538587,121870.0,121860.0,0.00105112]
[1752488886130,1.20820633,121870.0,121860.0,0.00105112]
[1752488887233,0.75062587,121870.0,121860.0,0.00105112]
[1752488887455,0.72601587,121870.0,121860.0,0.00105112]
[1752488887660,0.86069587,121870.0,121860.0,0.00105112]
[1752488888065,0.72601587,121870.0,121860.0,0.00105112]
[1752488888311,1.04883633,121870.0,121860.0,0.00105112]
[1752488888530,1.18351633,121870.0,121860.0,0.00105112]
[1752488889010,1.03168225,121870.0,121860.0,0.00105112]
[1752488889231,1.18351633,121870.0,121860.0,0.00105112]
[1752488889451,1.04883633,121870.0,121860.0,0.00105112]
[1752488889674,1.16668225,121870.0,121860.0,0.00105112]
[1752488889914,1.18383633,121870.0,121860.0,0.00105112]
[1752488890150,0.72601587,121870.0,121860.0,0.00012874]
[1752488890368,0.84402179,121870.0,121860.0,0.00012874]
[1752488890594,1.16684225,121870.0,121860.0,0.00012874]
[1752488890996,1.18399633,121870.0,121860.0,0.00012874]
[1752488891268,0.72601587,121870.0,121860.0,0.00012874]
[1752488891502,0.86113587,121870.0,121860.0,0.00012874]
[1752488892854,0.84398179,121870.0,121860.0,0.00012874]
[1752488893062,0.86113587,121870.0,121860.0,0.00012874]
[1752488893482,0.72601587,121870.0,121860.0,0.00012874]
[1752488893757,0.86089587,121870.0,121860.0,0.00012874]
[1752488893981,0.72601587,121870.0,121860.0,0.00012874]
[1752488894198,0.86089587,121870.0,121860.0,0.00012874]
[1752488895095,0.72601587,121870.0,121860.0,0.00012874]
[1752488895312,1.18367633,121870.0,121860.0,0.00012874]
[1752488895527,1.04883633,121870.0,121860.0,0.00012874]
[1752488895740,1.18383633,121870.0,121860.0,0.00012874]
[1752488896372,1.04883633,121870.0,121860.0,0.00012874]
[1752488896594,1.18379633,121870.0,121860.0,0.00012874]
[1752488897444,1.18371633,121870.0,121860.0,0.00012874]
[1752488897974,1.16656225,121870.0,121860.0,0.00012874]
[1752488898430,1.18371633,121870.0,121860.0,0.00012874]
[1752488899067,1.16656225,121870.0,121860.0,0.00012874]
[1752488899291,1.13015367,121870.0,121860.0,0.00012874]
[1752488899526,1.18367633,121870.0,121860.0,0.00012874]
[1752488899720,1.18359633,121870.0,121860.0,0.00012874]
[1752488900395,0.72601587,121870.0,121860.0,0.00012874]
[1752488900624,1.04883633,121870.0,121860.0,0.00012874]
[1752488900841,1.18367633,121870.0,121860.0,0.00012874]
[1752488903830,1.16652225,121870.0,121860.0,0.00012874]
[1752488904053,0.84350179,121870.0,121860.0,0.00012874]
[1752488904279,1.18347633,121870.0,121860.0,0.00012874]
[1752488904506,0.86065587,121870.0,121860.0,0.00012874]
[1752488904737,0.72601587,121870.0,121860.0,0.00012874]
[1752488904964,0.84342179,121870.0,121860.0,0.00012874]
[1752488905448,0.86057587,121870.0,121860.0,0.00012874]
[1752488906454,0.72601587,121870.0,121860.0,0.00012874]
[1752488906680,0.86041587,121870.0,121860.0,0.00012874]
[1752488907580,1.18315633,121870.0,121860.0,0.00012874]
[1752488908644,1.16600225,121870.0,121860.0,0.00012874]
[1752488908912,1.18315633,121870.0,121860.0,0.00012874]
[1752488910642,1.16572225,121870.0,121860.0,0.00012874]
[1752488910850,1.18287633,121870.0,121860.0,0.00012874]
[1752488911499,1.04883633,121870.0,121860.0,0.00012874]
[1752488911704,0.72601587,121870.0,121860.0,0.00012874]
[1752488911942,0.86001587,121870.0,121860.0,0.00012874]
[1752488912373,0.84286179,121870.0,121860.0,0.00012874]
[1752488912596,0.86001587,121870.0,121860.0,0.00012874]
[1752488914760,0.72601587,121870.0,121860.0,0.00012874]
[1752488915219,1.18259633,121870.0,121860.0,0.00012874]
[1752488915846,1.16544225,121870.0,121860.0,0.00012874]
[1752488916095,1.18259633,121870.0,121860.0,0.00012874]
[1752488916338,1.16544225,121870.0,121860.0,0.00012874]
[1752488916572,1.18259633,121870.0,121860.0,0.00012874]
[1752488918655,1.18231633,121870.0,121860.0,0.00012874]
[1752488919085,1.18227633,121870.0,121860.0,0.00012874]
[1752488919490,1.04883633,121870.0,121860.0,0.00012874]
[1752488919703,1.18223633,121870.0,121860.0,0.00012874]
[1752488920507,1.18235633,121870.0,121860.0,0.00012874]
[1752488920732,0.85953587,121870.0,121860.0,0.00012874]
[1752488920947,0.72601587,121870.0,121860.0,0.00012874]
[1752488921352,0.86081587,121870.0,121860.0,0.00012874]
[1752488921981,1.18363633,121870.0,121860.0,0.00012874]
[1752488922802,1.15263633,121870.0,121860.0,0.00012874]
[1752488923071,1.12143633,121870.0,121860.0,0.00012874]
[1752488924069,0.1425521,121870.0,121860.0,0.3229492]
[1752488924291,0.15970618,121870.0,121860.0,0.3229492]
[1752488924648,0.29426618,121870.0,121860.0,0.3229492]
[1752488924862,0.15970618,121870.0,121860.0,0.00012874]
[1752488925078,0.28943124,121870.0,121860.0,0.32282046]
[1752488925287,0.29763643,121870.0,121860.0,0.32282046]
[1752488925491,0.29643124,121870.0,121860.0,0.32382046]
[1752488925694,0.29143124,121870.0,121860.0,0.32282046]
[1752488925909,0.17332196,121870.0,121860.0,0.32282046]
[1752488926115,0.4555012,121870.0,121860.0,0.32282046]
[1752488926320,0.3210212,121870.0,121860.0,0.32282046]
[1752488926524,0.4574212,121870.0,121860.0,0.001]
[1752488926942,0.4584212,121870.0,121860.0,0.001]
[1752488928018,0.3240212,121870.0,121860.0,0.001]
[1752488928238,0.4583412,121870.0,121860.0,0.001]
[1752488928666,0.4583412,121870.0,121860.0,0.32382046]
[1752488929091,0.4583412,121870.0,121860.0,0.001]
[1752488929319,0.3023569,121870.0,121860.0,0.001]
[1752488929532,0.1681169,121870.0,121860.0,0.001]
[1752488929743,0.3022369,121870.0,121860.0,0.001]
[1752488930376,0.46634619,121870.0,121860.0,0.001]
[1752488931046,0.46634619,121870.0,121860.0,0.32382046]
[1752488931259,0.3022369,121870.0,121860.0,0.32382046]
[1752488931474,0.29387151,121870.0,121860.0,0.32382046]
[1752488931688,0.46614619,121870.0,121860.0,0.32382046]
[1752488931934,0.46614619,121870.0,121860.0,0.001]
[1752488932151,0.46614619,121870.0,121860.0,0.32382046]
[1752488932582,0.3020369,121870.0,121860.0,0.32382046]
[1752488932989,0.46614619,121870.0,121860.0,0.32382046]
[1752488933658,0.32402113,121870.0,121860.0,0.001]
[1752488933894,0.45790113,121870.0,121860.0,0.001]
[1752488934131,0.44985587,121870.0,121860.0,0.001]
[1752488934787,0.71581587,121870.0,121860.0,0.001]
[1752488934993,0.84985587,121870.0,121860.0,0.001]
[1752488935202,0.84981587,121870.0,121860.0,0.001]
[1752488935418,0.71581587,121870.0,121860.0,0.001]
[1752488935626,0.84981587,121870.0,121860.0,0.001]
[1752488935874,0.84977587,121870.0,121860.0,0.001]
[1752488937411,0.84973587,121870.0,121860.0,0.001]
[1752488937618,0.91393587,121870.0,121860.0,0.001]
[1752488938778,0.91369587,121870.0,121860.0,0.001]
[1752488939855,0.92966384,121870.0,121860.0,0.001]
[1752488940487,0.92958384,121870.0,121860.0,0.001]
[1752488940915,0.79598384,121870.0,121860.0,0.001]
[1752488941122,0.92958384,121870.0,121860.0,0.001]
[1752488941327,0.79598384,121870.0,121860.0,0.001]
[1752488941556,0.92962384,121870.0,121860.0,0.001]
[1752488944252,0.92938384,121870.0,121860.0,0.001]
[1752488944459,1.22444384,121870.0,121860.0,0.001]
[1752488944886,1.09108384,121870.0,121860.0,0.001]
[1752488945090,0.69108384,121870.0,121860.0,0.001]
[1752488945284,0.82468384,121870.0,121860.0,0.001]
[1752488945495,0.69108384,121870.0,121860.0,0.001]
[1752488945713,0.82476384,121870.0,121860.0,0.001]
[1752488949148,0.6127446,121870.0,121860.0,0.001]
[1752488949484,0.6127446,121870.0,121860.0,0.32382046]
[1752488949900,0.62095006,121870.0,121860.0,0.32382046]
[1752488950229,0.62091006,121870.0,121860.0,0.32382046]
[1752488950440,0.78501935,121870.0,121860.0,0.32382046]
[1752488950886,0.78501935,121870.0,121860.0,0.001]
[1752488951499,0.62091006,121870.0,121860.0,0.001]
[1752488951699,0.64329436,121870.0,121860.0,0.001]
[1752488951987,0.79988924,121870.0,121860.0,0.001]
[1752488952330,0.83248924,121870.0,121860.0,0.001]
[1752488953708,0.83256924,121870.0,121860.0,0.32382046]
[1752488954066,0.83256924,121870.0,121860.0,0.001]
[1752488954477,0.53497961,121870.0,121860.0,0.32382046]
[1752488954719,0.47097961,121870.0,121860.0,0.32382046]
[1752488954933,0.62102985,121870.0,121860.0,0.32382046]
[1752488955294,0.48738985,121870.0,121860.0,0.001]
[1752488955498,0.78513914,121870.0,121860.0,0.32382046]
[1752488955693,0.60387577,121870.0,121860.0,0.32382046]
[1752488955898,0.48738985,121870.0,121860.0,0.32382046]
[1752488956170,0.58032618,121870.0,121860.0,0.38542046]
[1752488956359,0.58032604,121870.0,121860.0,0.38542046]
[1752488957113,0.44680604,121870.0,121860.0,0.38542046]
[1752488957314,0.58032604,121870.0,121860.0,0.38542046]
[1752488958157,0.57212119,121870.0,121860.0,0.38542046]
[1752488958977,0.58032611,121870.0,121860.0,0.38542046]
[1752488959203,0.28522611,121870.0,121860.0,0.38542046]
[1752488959415,0.15170611,121870.0,121860.0,0.0318]
[1752488959645,0.30135636,121870.0,121860.0,0.001]
[1752488959848,0.29315117,121870.0,121860.0,0.001]
[1752488960003,0.30135629,121870.0,121860.0,0.001]
[1752488960430,0.30956155,121870.0,121860.0,0.001]
[1752488960592,0.30956155,121870.0,121860.0,0.32382046]
[1752488961245,0.30135629,121870.0,121860.0,0.32382046]
[1752488961656,0.16811629,121870.0,121860.0,0.32382046]
[1752488961860,0.29299117,121870.0,121860.0,0.32382046]
[1752488962091,0.29299117,121870.0,121860.0,0.001]
[1752488962299,0.30119636,121870.0,121860.0,0.32382046]
[1752488962518,0.30119636,121870.0,121860.0,0.001]
[1752488962714,0.30119636,121870.0,121860.0,0.32382046]
[1752488962715,0.30940169,121870.0,121860.0,0.32382046]
[1752488962930,0.17632169,121870.0,121860.0,0.32382046]
[1752488963130,0.30928169,121870.0,121860.0,0.001]
[1752488963483,0.30928169,121870.0,121860.0,0.32382046]
[1752488963679,0.30928169,121870.0,121860.0,0.001]
[1752488963883,0.31748715,121870.0,121860.0,0.001]
[1752488964093,0.31748715,121870.0,121860.0,0.32382046]
[1752488964294,0.30928169,121870.0,121860.0,0.32382046]
[1752488964970,0.30107636,121870.0,121860.0,0.32382046]
[1752488965368,0.30928169,121870.0,121860.0,0.001]
[1752488965692,0.30928169,121870.0,121860.0,0.32382046]
[1752488967810,0.31748708,121870.0,121860.0,0.32382046]
[1752488968160,0.31748762,121870.0,121860.0,0.32382046]
[1752488968365,0.30928216,121870.0,121860.0,0.32382046]
[1752488969243,0.16811677,121870.0,121860.0,0.001]
[1752488969451,0.30075677,121870.0,121860.0,0.32382046]
[1752488969652,0.16811677,121870.0,121860.0,0.32382046]
[1752488970081,0.17632223,121870.0,121860.0,0.32382046]
[1752488970253,0.30876223,121870.0,121860.0,0.32382046]
[1752488970485,0.29235144,121870.0,121860.0,0.32382046]
[1752488970838,0.3005567,121870.0,121860.0,0.32382046]
[1752488971237,0.3004767,121870.0,121860.0,0.001]
[1752488971458,0.3004767,121870.0,121860.0,0.32382046]
[1752488971677,0.30868209,121870.0,121860.0,0.32382046]
[1752488972292,0.34043138,121870.0,121860.0,0.32382046]
[1752488972494,0.30868209,121870.0,121860.0,0.32382046]
[1752488973450,0.31688755,121870.0,121860.0,0.32382046]
[1752488973664,0.47279178,121870.0,121860.0,0.32382046]
[1752488974454,0.47279178,121870.0,121860.0,0.001]
[1752488975340,0.46458659,121870.0,121860.0,0.001]
[1752488975988,0.51958133,121870.0,121860.0,0.001]
[1752488976606,0.51958133,121870.0,121860.0,0.32382046]
[1752488977027,0.51914133,121870.0,121860.0,0.32382046]
[1752488977520,0.51914133,121870.0,121860.0,0.001]
[1752488979226,0.38722133,121870.0,121860.0,0.001]
[1752488979478,0.51902133,121870.0,121860.0,0.001]
[1752488979714,0.51902133,121870.0,121860.0,0.32382046]
[1752488980190,0.22311177,121870.0,121860.0,0.32382046]
[1752488980405,0.38722106,121870.0,121860.0,0.32382046]
[1752488980614,0.51894106,121870.0,121860.0,0.32382046]
[1752488980825,0.38722106,121870.0,121860.0,0.32382046]
[1752488981031,0.51914106,121870.0,121860.0,0.32382046]
[1752488981258,0.51914106,121870.0,121860.0,0.001]
[1752488981462,0.51914106,121870.0,121860.0,0.32382046]
[1752488981673,0.38722106,121870.0,121860.0,0.32382046]
[1752488981879,0.51914106,121870.0,121860.0,0.001]
[1752488982102,0.51914106,121870.0,121860.0,0.32382046]
[1752488982502,0.51914106,121870.0,121860.0,0.001]
[1752488982686,0.51093587,121870.0,121860.0,0.001]
[1752488983358,0.37901587,121870.0,121860.0,0.001]
[1752488983538,0.50273048,121870.0,121860.0,0.001]
[1752488984242,0.69363094,121870.0,121860.0,0.001]
[1752488984660,0.82535094,121870.0,121860.0,0.001]
[1752488985474,1.22535094,121870.0,121860.0,0.001]
[1752488987886,0.77081048,121870.0,121860.0,0.001]
[1752488988094,1.22527094,121870.0,121860.0,0.001]
[1752488988485,0.90245048,121870.0,121860.0,0.001]
[1752488988696,1.19755048,121870.0,121860.0,0.001]
[1752488990479,1.06591048,121870.0,121860.0,0.001]
[1752488990719,1.07411581,121870.0,121860.0,0.32382046]
[1752488990917,1.07411581,121870.0,121860.0,0.001]
[1752488991252,1.20559581,121870.0,121860.0,0.32382046]
[1752488991482,1.20559581,121870.0,121860.0,0.001]
[1752488991933,1.07411581,121870.0,121860.0,0.32382046]
[1752488992137,1.20571581,121870.0,121860.0,0.32382046]
[1752488992562,1.20571581,121870.0,121860.0,0.001]
[1752488992772,1.20571581,121870.0,121860.0,0.32382046]
[1752488993006,1.20571581,121870.0,121860.0,0.001]
[1752488993280,1.07411581,121870.0,121860.0,0.001]
[1752488993458,1.20575581,121870.0,121860.0,0.32382046]
[1752488994533,1.20575581,121870.0,121860.0,0.001]
[1752488995692,1.20563581,121870.0,121860.0,0.001]
[1752488996730,1.07411581,121870.0,121860.0,0.001]
[1752488996939,1.20563581,121870.0,121860.0,0.001]
[1752488997140,1.20555581,121870.0,121860.0,0.001]
[1752488997552,1.20546752,121870.0,121860.0,0.001]
[1752488998511,1.20562752,121870.0,121860.0,0.001]
[1752488999772,1.20558752,121870.0,121860.0,0.001]
[1752489000597,1.07402752,121870.0,121860.0,0.001]
[1752489000833,1.20550752,121870.0,121860.0,0.001]
[1752489001043,1.449421,121870.0,121860.0,0.001]
[1752489001254,1.39684798,121870.0,121860.0,0.001]
[1752489001403,1.52860798,121870.0,121860.0,0.001]
[1752489001601,1.07402752,121870.0,121860.0,0.001]
[1752489001927,1.52864798,121870.0,121860.0,0.001]
[1752489002141,1.20578752,121870.0,121860.0,0.001]
[1752489002350,1.39684798,121870.0,121860.0,0.001]
[1752489002492,0.99684798,121870.0,121860.0,0.001]
[1752489002693,1.12868798,121870.0,121860.0,0.001]
[1752489004442,0.80586752,121870.0,121860.0,0.001]
[1752489004614,0.80582752,121870.0,121860.0,0.001]
[1752489004976,1.12852798,121870.0,121860.0,0.001]
[1752489005498,1.12896798,121870.0,121860.0,0.001]
[1752489006314,0.99684798,121870.0,121860.0,0.001]
[1752489006494,0.70174798,121870.0,121860.0,0.001]
[1752489007158,0.83386798,121870.0,121860.0,0.001]
[1752489007363,0.37892752,121870.0,121860.0,0.001]
[1752489007573,0.83386798,121870.0,121860.0,0.001]
[1752489007787,0.70174798,121870.0,121860.0,0.001]
[1752489007989,0.25298284,121860.0,121850.0,0.0024]
[1752489008169,0.78939041,121860.0,121850.0,0.0024]
[1752489008367,0.69615041,121860.0,121850.0,0.0024]
[1752489008505,0.82847041,121860.0,121850.0,0.0024]
[1752489009109,0.50564995,121860.0,121850.0,0.0024]
[1752489009348,0.82847041,121860.0,121850.0,0.0024]
[1752489009755,1.03615041,121860.0,121850.0,0.0024]
[1752489009964,1.16851041,121860.0,121850.0,0.0024]
[1752489010323,1.03815041,121860.0,121850.0,0.0024]
[1752489010529,1.03815041,121860.0,121850.0,0.0034]
[1752489010530,1.17051041,121860.0,121850.0,0.0034]
[1752489010751,0.72032995,121860.0,121850.0,0.0034]
[1752489010967,1.17543041,121860.0,121850.0,0.0034]
[1752489011171,1.04315041,121860.0,121850.0,0.0034]
[1752489011352,1.17611041,121860.0,121850.0,0.0034]
[1752489011799,1.04315041,121860.0,121850.0,0.0034]
[1752489011958,1.17647041,121860.0,121850.0,0.0034]
[1752489013660,1.15931633,121860.0,121850.0,0.0034]
[1752489013931,1.17647041,121860.0,121850.0,0.0034]
[1752489014371,1.15931633,121860.0,121850.0,0.0034]
[1752489014572,1.04315041,121860.0,121850.0,0.0034]
[1752489014785,1.17619041,121860.0,121850.0,0.0034]
[1752489015156,1.17619041,121860.0,121850.0,0.00331009]
[1752489016312,1.57619041,121860.0,121850.0,0.00331009]
[1752489017086,1.17619041,121860.0,121850.0,0.00331009]
[1752489017924,1.17595041,121860.0,121850.0,0.00331009]
[1752489019033,0.85312995,121860.0,121850.0,0.00331009]
[1752489019207,1.17595041,121860.0,121850.0,0.00331009]
[1752489021866,1.04315041,121860.0,121850.0,0.00331009]
[1752489022307,1.17571041,121860.0,121850.0,0.00331009]
[1752489022679,1.04315041,121860.0,121850.0,0.00331009]
[1752489023005,1.17567041,121860.0,121850.0,0.00331009]
[1752489026998,1.04315041,121860.0,121850.0,0.00331009]
[1752489027199,1.17535041,121860.0,121850.0,0.00331009]
[1752489027570,0.85252995,121860.0,121850.0,0.00331009]
[1752489027796,1.17535041,121860.0,121850.0,0.00331009]
[1752489029751,0.85240995,121860.0,121850.0,0.00331009]
[1752489029995,1.17523041,121860.0,121850.0,0.00331009]
[1752489030252,0.85240995,121860.0,121850.0,0.00331009]
[1752489030574,1.17523041,121860.0,121850.0,0.00331009]
[1752489031010,1.17531041,121860.0,121850.0,0.00331009]
[1752489032914,0.85248995,121860.0,121850.0,0.00331009]
[1752489033305,1.17531041,121860.0,121850.0,0.00331009]
[1752489033504,1.17535041,121860.0,121850.0,0.00331009]
[1752489041099,0.85252995,121860.0,121850.0,0.00331009]
[1752489041227,1.17535041,121860.0,121850.0,0.00331009]
[1752489042731,0.72032995,121860.0,121850.0,0.00331009]
[1752489042946,1.17479041,121860.0,121850.0,0.00331009]
[1752489046505,0.85196995,121860.0,121850.0,0.00331009]
[1752489046705,1.17479041,121860.0,121850.0,0.00331009]
[1752489047912,1.04315041,121860.0,121850.0,0.00331009]
[1752489048143,1.17455041,121860.0,121850.0,0.00331009]
[1752489049383,1.12446775,121860.0,121850.0,0.00331009]
[1752489049630,1.25574775,121860.0,121850.0,0.00331009]
[1752489050040,1.17443041,121860.0,121850.0,0.00331009]
[1752489050876,1.17467041,121860.0,121850.0,0.00331009]
[1752489053154,1.33664157,121860.0,121850.0,0.00331009]
[1752489053389,0.72032995,121860.0,121850.0,0.00331009]
[1752489053616,1.33664157,121860.0,121850.0,0.00331009]
[1752489053838,1.33676157,121860.0,121850.0,0.00331009]
[1752489054274,0.85196995,121860.0,121850.0,0.00331009]
[1752489054498,1.33676157,121860.0,121850.0,0.00331009]
[1752489055176,1.20512157,121860.0,121850.0,0.00331009]
[1752489055586,1.33664157,121860.0,121850.0,0.00331009]
[1752489056379,0.72032995,121860.0,121850.0,0.00331009]
[1752489056597,1.20512157,121860.0,121850.0,0.00331009]
[1752489056910,1.33680157,121860.0,121850.0,0.00331009]
[1752489057907,1.33180157,121860.0,121850.0,0.00231009]
[1752489058201,1.20612157,121860.0,121850.0,0.00331009]
[1752489058456,1.33772157,121860.0,121850.0,0.00331009]
[1752489058594,1.34172157,121860.0,121850.0,0.00331009]
[1752489060193,1.38760632,121860.0,121850.0,0.00331009]
[1752489060395,1.34172157,121860.0,121850.0,0.00331009]
[1752489061223,0.85692995,121860.0,121850.0,0.00331009]
[1752489061416,1.34172157,121860.0,121850.0,0.00331009]
[1752489062548,1.34156157,121860.0,121850.0,0.00331009]
[1752489063083,1.34056157,121860.0,121850.0,0.00331009]
[1752489063498,1.36376453,121860.0,121850.0,0.00331009]
[1752489065372,1.36364453,121860.0,121850.0,0.00331009]
[1752489067954,1.23232453,121860.0,121850.0,0.00331009]
[1752489068174,1.36356453,121860.0,121850.0,0.00331009]
[1752489069470,0.87877291,121860.0,121850.0,0.00331009]
[1752489069848,1.34036157,121860.0,121850.0,0.00331009]
[1752489070055,0.79206995,121860.0,121850.0,0.00331009]
[1752489070276,0.66082995,121860.0,121850.0,0.00331009]
[1752489070483,0.66082995,121860.0,121850.0,0.3083059]
[1752489070484,0.66367587,121860.0,121850.0,0.3083059]
[1752489070688,0.28082995,121860.0,121850.0,0.37338359]
[1752489070898,0.45206995,121860.0,121850.0,0.37338359]
[1752489071101,0.32082995,121860.0,121850.0,0.37338359]
[1752489071309,0.41206995,121860.0,121850.0,0.37338359]
[1752489071520,0.32903588,121860.0,121850.0,0.37338359]
[1752489071726,0.46027588,121860.0,121850.0,0.37338359]
[1752489072166,0.46027588,121860.0,121850.0,0.13098778]
[1752489072383,0.46027588,121860.0,121850.0,0.06591009]
[1752489072599,0.46027588,121860.0,121850.0,0.3083059]
[1752489072810,0.46027588,121860.0,121850.0,0.06591009]